Cogmind - Beta 12 X3 @@@ ROGUE MODE // 2022.09.16 @ 14:58:50 Player: btmk16 Result: Destroyed by H-77 Assassin with High-powered Shotgun Performance ------------- Evolutions (5) 2500 Regions Visited (11) 2200 Robots Destroyed (228) 1140 Value Destroyed (7904) 7904 Prototype IDs (24) 480 Alien Tech Used (0) 0 Bonus (2763) 2763 TOTAL SCORE: 16987 Bonus ------- High Alert Combat Kills 671 Follower Combat Kills 228 Met Warlord at Base 500 MAIN.C Attacked Warlord 500 Warlord Defense Kills 864 Cogmind --------- Core Integrity 0/1000 Matter 261/300 Energy 144/150 System Corruption 20% Temperature Cool (4) Movement Walking (106) Location -5/Warlord Parts ------- > --- POWER (1) -------- Micro Fission Core > --- PROPULSION (4) --- Armored Leg Enhanced Biometal Leg Enhanced Biometal Leg > --- UTILITY (10) ----- High-capacity Storage Unit Machine Analyzer Advanced Salvage Targeting Computer > --- WEAPON (2) ------- (None) > --- INVENTORY (20) --- Vortex Chain Reactor Advanced Terrain Scan Processor Transmission Jammer Cloaking Device Makeshift Ablative Armor System Mapper System Purifier Rocket Launcher Heavy Rocket Launcher Vortex Catalyst Activator (10) Impact Mace Power Sword Peak State ------------ > --- POWER ------------ Light Antimatter Reactor > --- PROPULSION ------- Armored Medium Treads Armored Medium Treads Armored Medium Treads Armored Medium Treads > --- UTILITY ---------- High-capacity Storage Unit Machine Analyzer Advanced Visual Processing Unit Advanced Salvage Targeting Computer Advanced Salvage Targeting Computer Advanced Melee Analysis Suite Improved Target Analyzer Improved Transmission Jammer Improved Medium Armor Plating Makeshift Ablative Armor > --- WEAPON ----------- Heavy Autocannon > --- INVENTORY -------- Vortex Chain Reactor Armored Leg Enhanced Biometal Leg Enhanced Biometal Leg Advanced Terrain Scan Processor Transmission Jammer Cloaking Device Hardened Heavy Armor Plating Makeshift Ablative Armor Improved Shield Generator System Mapper System Purifier Rocket Launcher Heavy Rocket Launcher Vortex Catalyst Activator Impact Mace Power Sword [Rating: 104] Favorites ----------- Power Enhanced Nuclear Core Engine Improved Deuterium Engine Power Core Enhanced Nuclear Core Reactor Light Antimatter Reactor Propulsion Light Treads Treads Light Treads Leg Enhanced Biometal Leg Wheel Armored Huge Wheel Utility Advanced Visual Processing Unit Device Improved Sensor Array Storage High-capacity Storage Unit Processor Advanced Visual Processing Unit Hackware System Shield Protection Medium Armor Plating Weapon Impact Mace Energy Gun Heavy Particle Gun Energy Cannon Vortex Cannon Ballistic Gun Improved Assault Rifle Ballistic Cannon Heavy Autocannon Launcher Rocket Launcher Impact Weapon Impact Mace Slashing Weapon Power Sword Build | -11 -10 -9 -8 -7 -6 -5 -5 -5 -5 -5 -5 ------- Run | Scr Mat Mat Mat Fac Fac Fac Was Fac Upp Upp War Slots Evolved 10 | . . 2 2 2 2 2 . . . . . Power . | . . . . . . . . . . . . Propulsion 2 | . . 1 . 1 . . . . . . . Utility 8 | . . 1 2 1 2 2 . . . . . Weapon . | . . . . . . . . . . . . Parts Attached 240 | 7 12 38 34 56 24 4 1 17 7 6 34 Power 24 | 2 2 5 3 6 3 . . 1 . 1 1 Engine 16 | 2 2 5 2 2 3 . . . . . . Core 7 | . . . 1 4 . . . 1 . . 1 Reactor 1 | . . . . . . . . . . 1 . Propulsion 67 | 2 4 17 7 18 . 1 1 2 . . 15 Treads 47 | 2 3 11 7 16 . . . . . . 8 Leg 6 | . . . . . . . . 1 . . 5 Wheel 14 | . 1 6 . 2 . 1 1 1 . . 2 Hover . | . . . . . . . . . . . . Flight . | . . . . . . . . . . . . Utility 85 | 1 3 7 20 18 13 3 . 8 . 4 8 Device 34 | . 2 3 9 8 4 1 . 3 . . 4 Storage 5 | 1 1 . 2 1 . . . . . . . Processor 9 | . . . 2 1 3 2 . 1 . . . Hackware 3 | . . . . 1 2 . . . . . . Protection 34 | . . 4 7 7 4 . . 4 . 4 4 Artifact . | . . . . . . . . . . . . Weapon 64 | 2 3 9 4 14 8 . . 6 7 1 10 Energy Gun 18 | . 3 4 3 8 . . . . . . . Energy Cannon 1 | . . . . . . . . . . . 1 Ballistic Gun 8 | 2 . 4 1 1 . . . . . . . Ballistic Cannon 9 | . . . . . 1 . . . . . 8 Launcher 9 | . . 1 . . 2 . . 1 4 . 1 Special Weapon . | . . . . . . . . . . . . Impact Weapon 9 | . . . . 4 1 . . 3 1 . . Slashing Weapon 10 | . . . . 1 4 . . 2 2 1 . Piercing Weapon . | . . . . . . . . . . . . Special Melee Weapon . | . . . . . . . . . . . . Unidentified Prototypes 12 | . . 1 1 3 2 . . . . . 5 Corrupted Parts 2 | . . . . . . . . . . . 2 System Corruption 4 | . . . . . . . . . . . 4 Parts Lost 48 | . 3 7 3 15 1 . 2 . . 2 15 Power 8 | . 1 2 1 2 . . 1 . . . 1 Propulsion 17 | . 1 3 . 6 . . 1 . . 1 5 Utility 18 | . . 1 2 6 . . . . . 1 8 Weapon 5 | . 1 1 . 1 1 . . . . . 1 Highest Loss Streak 14 | . 2 2 1 3 1 . 2 . . 2 14 To Critical Strikes 3 | . . . . 1 . . 1 . . . 1 Average Slot Usage (%) 91 | . 96 99 98 95 76 82 69 82 82 82 87 Engine 4 | . 13 10 7 1 5 5 3 . . . . Core 2 | . . . 1 5 . . . 2 5 4 . Treads 17 | . 25 22 27 26 . . . . . . 7 Wheel 5 | . 2 9 . 1 13 11 11 11 11 9 7 Device 11 | . 11 11 9 16 10 13 8 8 5 5 4 Storage 7 | . 14 11 9 7 6 5 5 5 5 5 5 Processor 14 | . . . 7 12 16 26 29 31 35 35 34 Protection 9 | . . 10 17 7 13 5 4 9 5 6 10 Energy Gun 6 | . 15 13 11 7 . . . . . . . Ballistic Gun 2 | . 12 8 6 . . . . . . . . Impact Weapon 2 | . . . . 5 . 5 2 4 4 5 1 Slashing Weapon 1 | . . . . . 5 5 2 4 3 5 1 Naked Turns . | . . . . . . . . . . . . Heaviest Build 108 | 13 33 42 65 75 83 84 79 72 73 74 108 Greatest Support 108 | 40 40 60 66 98 56 56 56 56 56 56 108 Greatest Overweight (x) 3 | . 2 3 1 2 1 1 1 1 1 2 3 Average Overweight (x) . | . . 1 . . 1 1 . . 1 1 1 Largest Inventory Capacity 20 | 8 15 15 20 20 20 20 20 20 20 20 20 Average Capacity 18 | 7 14 15 16 20 20 20 20 20 20 20 20 Most Carried 20 | 6 15 15 18 20 20 20 20 20 20 20 20 Average Carried 17 | 2 11 14 15 18 19 19 18 19 20 19 19 Final Capacity 20 | 8 15 15 20 20 20 20 20 20 20 20 20 Final Carried 20 | 6 15 15 18 20 20 18 20 20 20 19 14 Class Distribution -------------------- 42% | Mutant 33% | Scavenger-Mutant 9% | Scavenger-Assassin 6% | Gladiator 5% | Scavenger-Skirmisher Dominant Class ---------------- Mutant | -10/Materials Scavenger-Mutant | -9/Materials Scavenger-Mutant | -8/Materials Scavenger-Mutant | -7/Factory Gladiator | -6/Factory Mutant | -5/Factory Mutant | -5/Waste Mutant | -5/Factory Mutant | -5/Upper Caves Mutant | -5/Upper Caves Mutant | -5/Warlord Resources | -11 -10 -9 -8 -7 -6 -5 -5 -5 -5 -5 -5 ----------- Run | Scr Mat Mat Mat Fac Fac Fac Was Fac Upp Upp War Matter Collected 4414 | 146 411 631 759 741 210 100 . 249 96 225 846 Remotely . | . . . . . . . . . . . . Salvage Created 8866 | . 983 1944 1488 1986 688 472 . 506 250 319 230 Parts 435 | . 67 111 69 52 30 32 . 30 20 15 9 Haulers Intercepted 14 | . 2 5 3 3 . . . 1 . . . Recyclers Shooed 8 | . 5 . 3 . . . . . . . . Parts Field Recycled . | . . . . . . . . . . . . Retrieved Matter . | . . . . . . . . . . . . Parts Self-Destructed 23 | . . . . . . . . . 13 10 . Prevented 2 | . . . . . . . . . 2 . . Kills | -11 -10 -9 -8 -7 -6 -5 -5 -5 -5 -5 -5 ------- Run | Scr Mat Mat Mat Fac Fac Fac Was Fac Upp Upp War Combat Hostiles Destroyed 174 | . 19 35 29 33 13 10 . 7 18 4 6 Melee 36 | . . . 1 9 10 9 . 2 2 3 . Guns 96 | . 19 34 26 17 . . . . . . . Cannons 6 | . . . . . . . . . . . 6 AOE 24 | . . . 1 . 3 . . 5 15 . . Classes Destroyed 19 | . 7 4 . 4 . 1 . 1 . 1 1 Worker 7 | . . 1 1 1 1 . . 3 . . . Builder 6 | . 2 1 . 1 1 1 . . . . . Tunneler 5 | . . 2 . 1 . . . 2 . . . Hauler 14 | . 2 5 3 3 . . . 1 . . . Recycler 5 | . 1 . 1 2 . . . 1 . . . Mechanic 1 | . . . . . . . . 1 . . . Operator 6 | . 2 2 1 1 . . . . . . . Watcher 10 | . 3 4 . 2 . . . 1 . . . Swarmer 41 | . 3 3 7 . 3 4 . 5 16 . . Grunt 77 | . 16 23 17 10 5 2 . . . 3 1 Brawler 3 | . . . . 3 . . . . . . . Duelist 1 | . . 1 . . . . . . . . . Sentry 25 | . . 8 5 8 3 . . . . 1 . Specialist 2 | . . . . 2 . . . . . . . Hunter 2 | . . . . . . 2 . . . . . Programmer 21 | . . . . 9 2 2 . 2 2 . 4 Heavy 1 | . . . . 1 . . . . . . . Behemoth 1 | . . . . . . . . . . . 1 Decomposer 1 | . . . . . . . . . . 1 . Samaritan 1 | . . . . . . . . . . 1 . Best Kill Streak 10 | . 8 5 5 4 5 7 . 10 6 3 3 Combat Bots Only 7 | . 3 5 4 4 4 7 . 7 6 3 3 Max Kills in Single Turn 4 | . 2 1 1 2 2 1 . 2 4 1 1 Gunslinging 1 | . 1 . . . . . . . . . . Exploded 4 | . . . 1 . 2 . . 2 4 . . Melee 1 | . . . 1 1 1 1 . 1 1 1 . Uniques/NPCs Destroyed . | . . . . . . . . . . . . Combat | -11 -10 -9 -8 -7 -6 -5 -5 -5 -5 -5 -5 -------- Run | Scr Mat Mat Mat Fac Fac Fac Was Fac Upp Upp War Damage Taken 14874 | . 1107 1521 1449 2975 997 351 203 381 632 929 4329 Core 1958 | . 210 147 176 358 62 100 . . 75 90 740 Absorbed by Shields 371 | . . . . 168 55 . . . . . 148 Redirected to Shielding 96 | . . . . . 43 . . 53 . . . Regen/Repaired (Parts) 1088 | . 86 89 . . 62 . . 684 . . 167 Core Remaining (%) 64 | 100 16 63 68 48 92 . . . . . . Volleys Fired 467 | . 107 132 114 64 2 . . 4 12 . 32 Largest 2 | . 2 2 2 2 1 . . 1 1 . 1 Hottest 160 | . 112 130 110 160 39 . . 39 33 . 90 Shots Fired 872 | . 211 258 225 128 2 . . 3 12 . 33 Gun 821 | . 211 257 225 128 . . . . . . . Cannon 33 | . . . . . . . . . . . 33 Launcher 18 | . . 1 . . 2 . . 3 12 . . Special . | . . . . . . . . . . . . Kinetic 379 | . 121 90 134 1 . . . . . . 33 Thermal 475 | . 90 167 91 127 . . . . . . . Explosive 18 | . . 1 . . 2 . . 3 12 . . Electromagnetic . | . . . . . . . . . . . . Robot Hit Streak 26 | . 20 22 26 24 8 . . . 5 . 5 Robot Miss Streak 5 | . 3 3 3 5 . . . . 1 . 3 Penetration Max . | . . . . . . . . . . . . Secondary Targets 6 | . 1 1 3 1 . . . . . . . Max Gunslinging Chain 1 | . 1 1 1 1 . . . . . . . Shots Hit Robots 775 | . 149 176 155 167 33 22 . 14 17 24 18 Core Hits 341 | . 55 69 63 80 13 10 . 15 20 7 9 Critical Kills 5 | . . 1 . 4 . . . . . . . Critical Parts Destroyed 19 | . . . 1 14 . . . 1 3 . . Critical Strikes 58 | . 7 9 7 19 3 3 . 1 3 3 3 Burn 22 | . 7 8 6 1 . . . . . . . Destroy 2 | . . 1 1 . . . . . . . . Blast 3 | . . . . . . . . . . . 3 Smash 22 | . . . . 18 . . . 1 3 . . Sever 9 | . . . . . 3 3 . . . 3 . Melee Attacks 251 | . . . . 101 45 34 . 22 17 30 2 Impact 124 | . . . . 100 . 5 . 5 7 5 2 Slashing 127 | . . . . 1 45 29 . 17 10 25 . Piercing . | . . . . . . . . . . . . Sneak Attacks 23 | . . . . 4 3 3 . 9 . 4 . Combat Hostiles 3 | . . . . 1 1 1 . . . . . Follow-up Attacks 20 | . . . . 9 . 4 . . 2 5 . Damage Inflicted 21990 | . 1707 2655 2736 5531 2137 1094 . 1651 1508 1236 1735 Guns 9400 | . 1706 2648 2653 2393 . . . . . . . Cannons 1726 | . . . . . . . . . . . 1726 Explosions 2158 | . . . 68 200 289 . . 605 996 . . Melee 8668 | . . . . 2932 1848 1094 . 1046 512 1236 . Ramming 38 | . 1 7 15 6 . . . . . . 9 Kinetic 5107 | . 839 1068 1474 . . . . . . . 1726 Thermal 6219 | . 867 1580 1179 2593 . . . . . . . Explosive 1768 | . . . . . 289 . . 483 996 . . Electromagnetic 190 | . . . 68 . . . . 122 . . . Impact 3815 | . . . . 2865 . 192 . 228 290 240 . Slashing 4853 | . . . . 67 1848 902 . 818 222 996 . Piercing . | . . . . . . . . . . . . Highest Corruption 20 | . . . 1 17 . 1 1 4 7 7 20 Average Corruption 5 | . . . 1 6 . 1 1 2 5 7 4 Corruption Purged 5 | . . . . 5 . . . . . . . Corruption Blocked 6 | . . . . . . . . . . . 6 Effects 173 | . . . 11 102 . 2 2 12 7 22 15 Message Errors 36 | . . . 2 19 . . . 3 1 6 5 Matter Fused 50 | . . . 3 32 . . 1 3 4 5 2 Heat Flow Errors 19 | . . . 2 10 . 1 . . . 5 1 Energy Discharges 22 | . . . . 13 . 1 . 4 1 1 2 Parts Rejected 4 | . . . . 2 . . 1 . . . 1 Data Loss (minor) 21 | . . . . 15 . . . 1 . 2 3 Data Loss (major) 10 | . . . 1 6 . . . . 1 2 . Misfires 5 | . . . 2 2 . . . . . . 1 Alerts 3 | . . . . 2 . . . . . 1 . Misdirections 1 | . . . . 1 . . . . . . . Weapon Failures 2 | . . . 1 . . . . 1 . . . Overload Shots . | . . . . . . . . . . . . Overflow Damage 2577 | . . . . 1250 285 79 . 468 213 108 174 Projectiles 174 | . . . . . . . . . . . 174 Explosions 137 | . . . . 53 62 . . 6 16 . . Melee 2266 | . . . . 1197 223 79 . 462 197 108 . Knockbacks 20 | . . . . 6 . 2 . . 7 1 4 Impact 14 | . . . . 6 . 2 . . 5 1 . Kinetic 4 | . . . . . . . . . . . 4 Secondary 2 | . . . . . . . . . 2 . . Self-Inflicted Damage 292 | . . 3 11 171 . . . . 107 . . Shots 6 | . . . 1 2 . . . . 3 . . Rammed 8 | . 1 1 2 2 . . . . . . 2 Targets Rammed 9 | . 1 1 3 2 . . . . . . 2 Kicked . | . . . . . . . . . . . . Crushed 1 | . . . 1 . . . . . . . . Highest Temperature 307 | . 126 225 261 307 . 258 . . . 261 200 Average Temperature 61 | . 18 59 42 81 . 134 . . . 113 83 Received Heat Transfer 3816 | . 546 561 765 495 245 9 . . . 315 880 Effects 1 | . . . 1 . . . . . . . . Interference 1 | . . . 1 . . . . . . . . Siege Activations . | . . . . . . . . . . . . Robots Corrupted . | . . . . . . . . . . . . Combat Hostiles . | . . . . . . . . . . . . Parts Fried 16 | . . . . 13 . 1 . 2 . . . Impact Corruptions 57 | . . . . 42 . 3 . 4 6 2 . Robots Melted 2 | . . 1 1 . . . . . . . . Combat Hostiles 2 | . . 1 1 . . . . . . . . Parts Melted 37 | . 1 14 6 15 1 . . . . . . Heat Transferred 14809 | . 2923 4514 2701 4671 . . . . . . . Parts Sabotaged 3 | . . . . . . . . . . . 3 Parts Stolen . | . . . . . . . . . . . . Parts Stripped . | . . . . . . . . . . . . Power Chain Reactions 1 | . . . . . . . . 1 . . . Missiles Intercepted . | . . . . . . . . . . . . Alert | -11 -10 -9 -8 -7 -6 -5 -5 -5 -5 -5 -5 ------- Run | Scr Mat Mat Mat Fac Fac Fac Was Fac Upp Upp War Peak Influence 765 | . 292 642 746 765 541 373 93 321 . . . Initial 372 | . . 76 271 324 372 120 63 51 . . . Average 353 | . 124 370 561 386 362 189 74 125 . . . Maximum Alert Level 3 | . 1 2 3 3 2 1 . 1 . . . Low Security (%) 26 | 100 88 15 . 11 16 75 100 80 . . . Level 1 31 | . 11 41 6 46 31 24 . 19 . . . Level 2 36 | . . 43 75 35 52 . . . . . . Level 3 5 | . . . 18 6 . . . . . . . Level 4 . | . . . . . . . . . . . . Level 5 . | . . . . . . . . . . . . High Security . | . . . . . . . . . . . . Max Security . | . . . . . . . . . . . . Squads Dispatched 38 | . 5 4 3 17 5 2 . 1 . 1 . Investigation 10 | . 3 2 2 1 2 . . . . . . Extermination 12 | . . . . 8 2 1 . 1 . . . Reinforcement 14 | . 2 2 1 7 1 1 . . . . . Assault 2 | . . . . 1 . . . . . 1 . Garrison . | . . . . . . . . . . . . Intercept . | . . . . . . . . . . . . Searches Triggered . | . . . . . . . . . . . . Construction Impeded 1 | . . . . 1 . . . . . . . Haulers Reinforced 1 | . . . . . . 1 . . . . . Active Scanning Responses . | . . . . . . . . . . . . Cargo Convoy Interrupts 1 | . . . . 1 . . . . . . . Stealth | -11 -10 -9 -8 -7 -6 -5 -5 -5 -5 -5 -5 --------- Run | Scr Mat Mat Mat Fac Fac Fac Was Fac Upp Upp War Distress Signals 7 | . 3 . 3 1 . . . . . . . Communications Jammed . | . . . . . . . . . . . . Distress Signals . | . . . . . . . . . . . . Times Spotted 295 | . 32 49 53 47 18 10 5 8 17 5 51 Peak Tracking Total 34 | . 4 4 8 6 4 3 5 5 4 6 34 Tactical Retreats 14 | . 1 1 2 2 2 1 . . 3 2 . Traps | -11 -10 -9 -8 -7 -6 -5 -5 -5 -5 -5 -5 ------- Run | Scr Mat Mat Mat Fac Fac Fac Was Fac Upp Upp War Traps Triggered 20 | . 2 2 1 9 4 1 . . . . 1 Indirectly . | . . . . . . . . . . . . Trap Hack Attempts . | . . . . . . . . . . . . Triggered . | . . . . . . . . . . . . Disarmed . | . . . . . . . . . . . . Reprogrammed . | . . . . . . . . . . . . Reused . | . . . . . . . . . . . . Traps Extracted . | . . . . . . . . . . . . Installed . | . . . . . . . . . . . . Triggered 29 | . . . . 4 . . . . 2 2 21 Machines | -11 -10 -9 -8 -7 -6 -5 -5 -5 -5 -5 -5 ---------- Run | Scr Mat Mat Mat Fac Fac Fac Was Fac Upp Upp War Machines Disabled 11 | . . . 5 2 . . . 4 . . . Max in Single Turn 4 | . . . 2 2 . . . 4 . . . Garrison Access 2 | . . . . 1 1 . . . . . . Machines Sabotaged . | . . . . . . . . . . . . Overloaded Fab Kills . | . . . . . . . . . . . . Hacking | -11 -10 -9 -8 -7 -6 -5 -5 -5 -5 -5 -5 --------- Run | Scr Mat Mat Mat Fac Fac Fac Was Fac Upp Upp War Machines Accessed 46 | . 6 8 3 10 11 4 . 3 . . 1 Terminals 29 | . 5 7 3 4 6 2 . 2 . . . Fabricators 5 | . . . . 2 2 1 . . . . . Repair Stations 7 | . 1 1 . 2 1 1 . 1 . . . Recycling Units . | . . . . . . . . . . . . Scanalyzers 1 | . . . . 1 . . . . . . . Garrison Access 3 | . . . . 1 2 . . . . . . Total Hacks 105 | . 14 22 9 20 20 10 . 9 . . 1 Successful 53 | . 10 13 3 8 11 3 . 4 . . 1 Failed 51 | . 3 9 6 12 9 7 . 5 . . . Catastrophic 11 | . . 1 . 4 4 . . 2 . . . Database Lockouts 1 | . 1 . . . . . . . . . . Manual 33 | . 7 8 . 9 5 4 . . . . . Terminals 70 | . 12 20 9 9 12 5 . 3 . . . Fabricators 10 | . . . . 5 3 2 . . . . . Repair Stations 20 | . 2 2 . 4 3 3 . 6 . . . Recycling Units . | . . . . . . . . . . . . Scanalyzers 1 | . . . . 1 . . . . . . . Garrison Access 3 | . . . . 1 2 . . . . . . Terminal Hacks 22 | . 6 7 3 1 4 . . . . . 1 Record 1 | . . 1 . . . . . . . . . Robot Analysis 3 | . 2 1 . . . . . . . . . Prototype ID Bank 6 | . 2 1 2 . 1 . . . . . . Open Door 1 | . . . . . . . . . . . 1 Alert Level 2 | . . . . 1 1 . . . . . . Unreport Threat 2 | . . . . . 2 . . . . . . Hauler Manifests 3 | . 1 2 . . . . . . . . . Zone Layout 4 | . 1 2 1 . . . . . . . . Fabricator Hacks 4 | . . . . 2 1 1 . . . . . Network Status 4 | . . . . 2 1 1 . . . . . Repair Station Hacks 14 | . 2 2 . 1 3 2 . 4 . . . Scan Component 8 | . 1 1 . 1 2 1 . 2 . . . Repair 6 | . 1 1 . . 1 1 . 2 . . . Recycling Unit Hacks . | . . . . . . . . . . . . Scanalyzer 1 | . . . . 1 . . . . . . . Insert Component 1 | . . . . 1 . . . . . . . Garrison Access Hacks 2 | . . . . 1 1 . . . . . . Seal Access 2 | . . . . 1 1 . . . . . . Unauthorized Hacks 10 | . 2 4 . 2 2 . . . . . . Terminals 8 | . 2 4 . 1 1 . . . . . . Track 1 | . . 1 . . . . . . . . . Botnet 5 | . 1 2 . 1 1 . . . . . . Operators 2 | . 1 1 . . . . . . . . . Fabricators 2 | . . . . 1 1 . . . . . . Fabnet 2 | . . . . 1 1 . . . . . . Repair Stations . | . . . . . . . . . . . . Recycling Units . | . . . . . . . . . . . . Scanalyzers . | . . . . . . . . . . . . Garrison Access . | . . . . . . . . . . . . Data Cores Recovered . | . . . . . . . . . . . . Used . | . . . . . . . . . . . . Hacking Detections 36 | . 4 6 2 8 9 4 . 3 . . . Full Trace Events 5 | . 1 1 1 . 2 . . . . . . Feedback Events 1 | . . . 1 . . . . . . . . Corruption 1 | . . . 1 . . . . . . . . Feedback Blocked . | . . . . . . . . . . . . Robot Schematics Acquired . | . . . . . . . . . . . . Robots Built . | . . . . . . . . . . . . Authchips . | . . . . . . . . . . . . Time . | . . . . . . . . . . . . Total Robot Build Rating . | . . . . . . . . . . . . Part Schematics Acquired . | . . . . . . . . . . . . Parts Built . | . . . . . . . . . . . . Authchips . | . . . . . . . . . . . . Time . | . . . . . . . . . . . . Total Part Build Rating . | . . . . . . . . . . . . Parts Repaired 5 | . 1 1 . . 1 . . 2 . . . Time 228 | . 26 26 . . 44 44 . 88 . . . Parts Recycled . | . . . . . . . . . . . . Recycled Matter . | . . . . . . . . . . . . Retrieved Matter . | . . . . . . . . . . . . Retrieved Components . | . . . . . . . . . . . . Parts Scanalyzed . | . . . . . . . . . . . . Part Schematics Acquired . | . . . . . . . . . . . . Parts Damaged . | . . . . . . . . . . . . Bothacking | -11 -10 -9 -8 -7 -6 -5 -5 -5 -5 -5 -5 ------------ Run | Scr Mat Mat Mat Fac Fac Fac Was Fac Upp Upp War Used RIF Installer . | . . . . . . . . . . . . Robots Hacked 4 | . . . . . . . . . . . 4 Non-combat . | . . . . . . . . . . . . Combat 4 | . . . . . . . . . . . 4 Robot Hacks Applied . | . . . . . . . . . . . . Relay Couplers Released . | . . . . . . . . . . . . Fabnet Peak Effective % 4 | . . . . . 3 4 4 4 4 4 4 Autooverrided 4 | . . . . . . . . . . . 4 Robots Rewired 5 | . . . . . . . . . . . 5 Allies Hacked . | . . . . . . . . . . . . Hacks Repelled . | . . . . . . . . . . . . Allies | -11 -10 -9 -8 -7 -6 -5 -5 -5 -5 -5 -5 -------- Run | Scr Mat Mat Mat Fac Fac Fac Was Fac Upp Upp War Total Allies 9 | . . . . . . . . . . . 9 Largest Group 6 | . . . . . . . . . . . 6 Highest-Rated Group 223 | . . . . . . . . . . . 223 Highest-Rated Ally 43 | . . . . . . . . . . . 43 Total Orders 2 | . . . . . . . . . . . 2 STAY 1 | . . . . . . . . . . . 1 FOLLOW 1 | . . . . . . . . . . . 1 Ally Attacks 35 | . . . . . . . . . . . 35 Total Damage 1652 | . . . . . . . . . . . 1652 Kills 7 | . . . . . . . . . . . 7 Allies Corrupted . | . . . . . . . . . . . . Allies Melted 1 | . . . . . . . . . . . 1 Intel | -11 -10 -9 -8 -7 -6 -5 -5 -5 -5 -5 -5 ------- Run | Scr Mat Mat Mat Fac Fac Fac Was Fac Upp Upp War Robot Analysis Total 3 | . 2 1 . . . . . . . . . Derelict Logs Recovered 1 | . . . . . . . . . 1 . . Drone Launches . | . . . . . . . . . . . . Drone Recoveries . | . . . . . . . . . . . . Exploration | -11 -10 -9 -8 -7 -6 -5 -5 -5 -5 -5 -5 ------------- Run | Scr Mat Mat Mat Fac Fac Fac Was Fac Upp Upp War Turns Passed 16184 | 91 1270 1899 2211 5273 1179 533 104 1044 476 757 1347 Spaces Moved 8316 | 50 592 830 905 2577 754 371 84 435 344 530 844 Core 3 | 3 . . . . . . . . . . . Treads 4121 | 47 439 338 905 2280 . . . . . . 112 Legs 7 | . . . . . . . . . . . 7 Wheels 4185 | . 153 492 . 297 754 371 84 435 344 530 725 Hover . | . . . . . . . . . . . . Flight . | . . . . . . . . . . . . Fastest Speed 50 | 50 110 95 160 115 115 115 100 100 115 115 106 Average Speed 143 | 153 147 158 181 154 115 115 113 108 115 118 133 Slowest Speed 320 | 160 160 240 240 320 115 115 115 115 115 130 250 Overloaded Moves . | . . . . . . . . . . . . Propulsion Burnouts . | . . . . . . . . . . . . Robots Hopped . | . . . . . . . . . . . . Cave-ins Triggered . | . . . . . . . . . . . . Exploration Rate (%) 52 | 4 86 81 61 60 23 12 75 10 64 70 85 Regions Visited 11 Branch Regions 3 Pre-discovered Areas . | . . . . . . . . . . . . Known Exits Taken 2 | . . . . 1 1 . . . . . . Unknown Exits Taken 7 | 1 1 1 1 . . . . 1 1 1 . Scrap Searched 4 | . . . . . . . . . 2 2 . Spaces Dug 44 | . . . . 24 3 5 . 4 3 3 2 Terrain Destroyed 244 | . . 10 21 57 26 5 . 35 76 3 11 Melee 43 | . . . . 24 3 5 . 4 3 3 1 Projectile 10 | . . . . . . . . . . . 10 AOE 191 | . . 10 21 33 23 . . 31 73 . . Terrain Rammed . | . . . . . . . . . . . . Walls Destroyed . | . . . . . . . . . . . . Machines Disabled . | . . . . . . . . . . . . Actions | -11 -10 -9 -8 -7 -6 -5 -5 -5 -5 -5 -5 --------- Run | Scr Mat Mat Mat Fac Fac Fac Was Fac Upp Upp War Total 11399 | 61 798 1165 1263 3574 994 444 94 972 387 619 1028 Wait 1828 | . 66 124 171 717 123 34 7 478 12 56 40 Move 8306 | 49 591 829 904 2576 753 371 83 434 343 529 844 Hop . | . . . . . . . . . . . . Pick Up 96 | 5 12 11 8 30 8 3 1 8 . . 10 Fast Attach 105 | 6 5 11 10 27 12 1 . 7 . 3 23 Attach 47 | . 3 6 2 14 2 3 1 7 . 2 7 Detach 17 | . 2 1 1 3 3 . 2 3 . 1 1 Swap 88 | 1 4 21 22 15 10 . . 3 7 1 4 Drop 161 | . 7 29 28 41 16 3 . 8 . 2 27 Fire 467 | . 107 132 114 64 2 . . 4 12 . 32 Melee 219 | . . . . 85 45 29 . 20 13 25 2 Ram 1 | . . 1 . . . . . . . . . Kick . | . . . . . . . . . . . . Crush 8 | . 1 . 3 2 . . . . . . 2 Escape Stasis 20 | . . . . . 20 . . . . . . Rewire 36 | . . . . . . . . . . . 36 Trap . | . . . . . . . . . . . . Miscellaneous . | . . . . . . . . . . . . Route ------- -11/Scrapyard -10/Materials (discovered 2 exits: *Mat x2) -9/Materials (discovered 3 exits: *Mat x2 / [*Min]) -8/Materials -7/Factory -6/Factory (discovered 2 exits: *Fac x2) -5/Factory -5/Waste -5/Factory -5/Upper Caves -5/Upper Caves (discovered 2 exits: [*Fac] / *War) -5/Warlord (discovered 1 exit: [*Pro]) History --------- Turn | Location | Event 6 | -11/Scrapyard | Discovered new exit (range 15) 92 | -11/Scrapyard | Entered Materials 304 | -10/Materials | Build established: Mutant 537 | -10/Materials | Repaired Lgt. Treads 572 | -10/Materials | Discovered new exit (range 16) 599 | -10/Materials | Central database locked down 799 | -10/Materials | Core integrity fell below 50% 828 | -10/Materials | Discovered new exit (range 16) 1165 | -10/Materials | Core integrity fell below 20% 1362 | -10/Materials | Entered another Materials area 1362 | -9/Materials | Evolved 2 slots: Propulsion x1, Utility x1 1952 | -9/Materials | Discovered new exit (range 6) 2106 | -9/Materials | Build established: Scavenger-Mutant 2228 | -9/Materials | Discovered new exit (range 16) 2415 | -9/Materials | Repaired Lgt. Armor Plating 3140 | -9/Materials | Discovered new exit (range 16) 3261 | -9/Materials | Entered another Materials area 3261 | -8/Materials | Evolved 2 slots: Utility x2 4383 | -8/Materials | Build established: Mutant 4533 | -8/Materials | Discovered new exit (range 5) 4872 | -8/Materials | Build established: Scavenger-Mutant 5472 | -8/Materials | Entered Factory 5472 | -7/Factory | Evolved 2 slots: Propulsion x1, Utility x1 6246 | -7/Factory | Cargo convoy interrupted 7573 | -7/Factory | Build established: Scavenger-Skirmisher 8523 | -7/Factory | Build established: Scavenger-Assassin 9472 | -7/Factory | First assault squad dispatched 9710 | -7/Factory | System corruption reached 10% 9755 | -7/Factory | Lost 3 parts (1n2u) 10030 | -7/Factory | Build established: Mutant 10658 | -7/Factory | Core integrity fell below 50% 10701 | -7/Factory | Discovered new exit (range 12) 10722 | -7/Factory | Identified exit to Factory 10745 | -7/Factory | Entered another Factory area 10745 | -6/Factory | Evolved 2 slots: Utility x2 10867 | -6/Factory | Build established: Gladiator 10998 | -6/Factory | Repaired Force Booster 11335 | -6/Factory | Discovered new exit (range 3) 11337 | -6/Factory | Identified exit to Factory 11477 | -6/Factory | Discovered exit to Factory (range 19) 11755 | -6/Factory | Spotted B-75 Beast 11924 | -6/Factory | Entered another Factory area 11924 | -5/Factory | Evolved 2 slots: Utility x2 12060 | -5/Factory | Build established: Mutant 12255 | -5/Factory | Destroyed 7 combat bots 12329 | -5/Factory | Discovered new exit (range 11) 12457 | -5/Factory | Sucked down chute 12457 | -5/Factory | Entered Waste 12484 | -5/Waste | Spotted C-40 Crusher 12498 | -5/Waste | Spotted C-40 Crusher 12507 | -5/Waste | Spotted C-40 Crusher 12510 | -5/Waste | Spotted C-40 Crusher 12513 | -5/Waste | Spotted C-40 Crusher 12514 | -5/Waste | Crushed by Compactor (0 parts destroyed, 1 dropped) 12522 | -5/Waste | Crushed by Compactor (1 part destroyed) 12533 | -5/Waste | Discovered new exit (range 20) 12561 | -5/Waste | Entered Factory 12744 | -5/Factory | Discovered new exit (range 20) 13183 | -5/Factory | Destroyed 7 combat bots 13339 | -5/Factory | Repaired Hrd. Heavy Armor Plating 13406 | -5/Factory | Repaired Arm. Huge Wheel 13605 | -5/Factory | Entered Upper Caves 13738 | -5/Upper Caves | Learned Factory stockpile data 14032 | -5/Upper Caves | Discovered new exit (range 7) 14061 | -5/Upper Caves | Attracted the attention of an 0b10 checkpoint 14081 | -5/Upper Caves | Entered another Upper Caves area 14090 | -5/Upper Caves | Discovered new exit (range 7) 14136 | -5/Upper Caves | Encountered a Warlord checkpoint 14460 | -5/Upper Caves | Attracted the attention of an 0b10 outpost 14527 | -5/Upper Caves | Spotted B-75 Beast 14785 | -5/Upper Caves | Discovered new exit (range 12) 14838 | -5/Upper Caves | Entered Warlord 14882 | -5/Warlord | System corruption cleaned by Quarantine Array 15055 | -5/Warlord | Met Warlord 15080 | -5/Warlord | Warlord's base attacked by MAIN.C 15100 | -5/Warlord | Found Prototype Reactor 15123 | -5/Warlord | Found Prototype Hackware 15128 | -5/Warlord | Found Prototype Device 15128 | -5/Warlord | Identified System Purifier 15388 | -5/Warlord | Found Prototype Launcher 15388 | -5/Warlord | Identified Vortex Catalyst Activator 15399 | -5/Warlord | Found Prototype Energy Cannon 15399 | -5/Warlord | Identified Vortex Cannon 15430 | -5/Warlord | Warlord forces counterattacked 15560 | -5/Warlord | Found Prototype Ballistic Cannon 15560 | -5/Warlord | Identified Hvy. Autocannon 15644 | -5/Warlord | P-70 Sage assimilated allied JM-H7O(Y) 15689 | -5/Warlord | Spotted Executioner 15755 | -5/Warlord | Warlord base infiltrated, sounded retreat 15820 | -5/Warlord | Build established: Commander-Mutant 16029 | -5/Warlord | Spotted B-86 Titan 16034 | -5/Warlord | Spotted B-75 Beast 16040 | -5/Warlord | Allies destroyed B-86 Titan 16062 | -5/Warlord | Destroyed B-75 Beast 16088 | -5/Warlord | Spotted Executioner 16130 | -5/Warlord | Core integrity fell below 50% 16140 | -5/Warlord | Spotted Executioner 16159 | -5/Warlord | System corruption reached 10% 16160 | -5/Warlord | Discovered new exit (range 18) 16173 | -5/Warlord | Core integrity fell below 20% 16180 | -5/Warlord | Spotted Executioner 16182 | -5/Warlord | Spotted Striker 16185 | -5/Warlord | Destroyed by H-77 Assassin with High-powered Shotgun Last Messages --------------- 16162_ System corrupted by crushing effect (+2). 16162_ System corrupted by crushing effect (+1). 16162_ System corrupted by crushing effect (+5). 16162_ System corrupted by crushing effect (+1). 16167_ Acquired 1 matter. 16168_ Slug penetrates Earth. 16170_ ANNOUNCEMENT: MAIN.C reinforcements approaching through caves, arriving soon. 16172_ Acquired 38 matter. 16174_ System corrupted: Matter fused (-10). 16174_ Acquired 19 matter. 16175_ Arm. Medium Treads destroyed. 16180_ ANNOUNCEMENT: Detected 2 Grunt squads, 1 Hunter squad, 1 Programmer squad, with prototype support. 16182_ Slug penetrates S-27 Virus. 16182_ P-70 Sage resets S-27 Virus, system corruption cleaned. 16183_ S-27 Virus knocked back. 16184_ Penetrated by Slug. 16185_ Acquired 2 matter. 16185_ Penetrated by Slug. Map ----- +----------------------------------------------------+ | | | | | | | | | | | | | | | | | ???????????????????????????????? | | ???????????????????????????????? | | ???????????????????????????????? | | ???????????????????????????????? | | ???????????????????????????????? | | ???????????????????????????????? | | ???????????????????????????????? | | ???????????????????????????????? | | ???????????????????????????????? | | ????????????????????????###????? | | ????????????????????????# #???## | | ??????????????????????### E??? | | ??????????????????????# p#?? %? | | ?????????????????????## ### ## | | ????????????????????## h # | | ???????????????????## gx < | | ???????????????????# phKgg< | | ????????? ????????# @g g#? | | ????????? ???????# ss;##?? | | ?????????#" ??????# *% p; #?? | | ??????????#" ??????# # lg ##?? | | ???????????"" ?????## ##?? | | ????????????#% ??## ibb ; ### | | ????????????# = ! =;;; # | | ????????????# !### # ### | | ????????????#?# %%%* # = g #? | | ??????????????#=%*%%g## [g #? | | #?????????????# # === ! g g ##? | | #?????????????# ##= / # i= ;#? | | #???????????? #=%/% gg=;#? | | #""###?######## # [= g% #? | | *"#"!"##""""%!#######%g![ !##? | | !%|%=!* !!= #???####= % E ##? | | = =%!%|% =%*[ #### ##*=[ | | []=[%!%% %% # == ### | | !!! = ! =! #? | | %=] [ #?? | | !=% ## #" #??? | | = ! ## # ## ?? | | % %% # "#""# "#? | | [ """#"# ### #"" " "#? | | !#"######## ### ### "#? | +----------------------------------------------------+ Best States ------------- Heat Dissipation 53 Energy Generation 21 Energy Capacity 300 Matter Stores 300 Matter Capacity 300 Sight Range 20 Robot Scan Range 15 Terrain Scan Range 16 Terrain Scan Density 10 Jamming Range 14 Additional Mass Support 6 EM Shielding 2 Armor Coverage 825 Resistance: KI 20 Resistance: TH 10 Weapon Shielding 66 Melee Speed Boost 20 Evasion (%) 45 Melee Accuracy 8 Target Analysis 6 Recoil Reduction 4 Force Boost 20 Salvage Targeting 6 Offensive Hacking 10 Defensive Hacking 12 Item Schematics ----------------- None Robot Schematics ------------------ None Fabricated ------------ Nothing Alien Tech Used ----------------- None Achievements -------------- None Challenges ------------ None Game ------ Seed BladeCargoDoomcannon Manual? 0 Play Time 01:53:58 Cumulative 510.3 hours Start 2022.09.15 @ 17:40:33 End 2022.09.16 @ 14:58:50 Sessions 1 Manual Loads 0 Difficulty Rogue Special Mode None Game No. 574 Rogue 573 Adventurer 0 Explorer 1 Win Type - Total 19 Types 13/0/3/3/0/0/0/0/0 Lore% 80 Gallery% 90 Achievement% 73 Wizard Run 0 Options --------- ASCII 0 Keyboard 1 Movement Vi Keybinds 0 Fullscreen 1 Font 18/SmallcapsGlow Map View 76x50 Tactical HUD 1 Map Filters NONE Filters NONE Steam 1 RUN: 13b06ac3-bafb-4f66-ae64-c0cfc896b8ca